bitfinex-derivatives/quotes_BTCF0:USTF0_20251230
["timestamp","ask_amount","ask_price","bid_price","bid_amount"]
[1767092171653,0.0113752,88024.0,88008.0,0.05704]
[1767092172556,0.0113754,88022.0,88008.0,0.05704]
[1767092173961,0.01154546,88025.0,88010.0,0.15378757]
[1767092174149,0.0113751,88024.0,88009.0,0.011377]
[1767092174350,0.00017046,88025.0,88008.0,0.05704]
[1767092174752,0.15378757,88020.0,88008.0,0.05704]
[1767092176155,0.0113759,88018.0,88008.0,0.05704]
[1767092176355,0.0113768,88011.0,88009.0,0.05704]
[1767092176663,0.0113768,88011.0,88007.0,0.00017046]
[1767092176859,0.0113768,88011.0,88007.0,6e-08]
[1767092177258,0.0113766,88012.0,88007.0,6e-08]
[1767092182867,0.0113763,88015.0,88007.0,6e-08]
[1767092183453,0.0113765,88013.0,88007.0,6e-08]
[1767092185160,0.15378757,88020.0,88007.0,6e-08]
[1767092185368,0.0285914,88019.0,88007.0,6e-08]
[1767092185558,0.0113764,88014.0,88007.0,6e-08]
[1767092186258,0.02860038,88013.0,88007.0,6e-08]
[1767092186471,0.0113764,88014.0,88007.0,6e-08]
[1767092186665,0.02860036,88013.0,88007.0,6e-08]
[1767092186869,0.0113764,88014.0,88007.0,6e-08]
[1767092187168,0.02860038,88013.0,88002.0,0.05704]
[1767092187368,0.02860038,88012.0,88002.0,0.05704]
[1767092187668,0.0113764,88014.0,88002.0,0.05704]
[1767092187858,0.02861039,88013.0,88002.0,0.05704]
[1767092188060,0.02861039,88012.0,88002.0,0.05704]
[1767092188259,0.0113764,88014.0,88002.0,0.05704]
[1767092188460,0.02862128,88013.0,88002.0,0.05704]
[1767092188664,0.02862128,88012.0,88002.0,0.05704]
[1767092188872,0.0113764,88014.0,88002.0,0.05704]
[1767092189072,0.02862129,88013.0,88002.0,0.05704]
[1767092189385,0.02862129,88012.0,88002.0,0.05704]
[1767092189563,0.0113758,88018.0,88004.0,0.0113775]
[1767092189864,0.02862444,88017.0,88003.0,0.0113777]
[1767092190063,0.02862444,88016.0,88003.0,0.0113777]
[1767092190268,0.02862444,88015.0,88003.0,0.0113777]
[1767092190466,0.02862444,88014.0,88003.0,0.0113777]
[1767092190668,0.02862444,88013.0,88003.0,0.0113777]
[1767092190860,0.0113758,88018.0,88003.0,0.0113777]
[1767092191060,0.02862473,88017.0,88003.0,0.0113777]
[1767092191273,0.02862473,88016.0,88003.0,0.0113777]
[1767092191570,0.02862473,88015.0,88003.0,0.0113777]
[1767092191768,0.02862473,88014.0,88002.0,0.05704]
[1767092191968,0.02862473,88013.0,88002.0,0.05704]
[1767092192164,0.02862975,88012.0,88002.0,0.05704]
[1767092192369,0.0113764,88014.0,88002.0,0.05704]
[1767092192571,0.02862962,88013.0,88002.0,0.05704]
[1767092192872,0.02862962,88012.0,88002.0,0.05704]
[1767092193066,0.0113764,88014.0,88002.0,0.05704]
[1767092193264,0.16516417,88012.0,87999.0,0.00017046]
[1767092193462,0.0113769,88010.0,88000.0,0.057]
[1767092195172,0.02863773,88009.0,88000.0,0.057]
[1767092195371,0.15378757,88010.0,88000.0,0.057]
[1767092195572,0.02863777,88009.0,88000.0,0.057]
[1767092195774,0.15378757,88010.0,88000.0,0.057]
[1767092196969,0.0113767,88011.0,88000.0,0.057]
[1767092197270,0.02864082,88010.0,88000.0,0.057]
[1767092197476,0.0113765,88013.0,88000.0,0.057]
[1767092197677,0.0113767,88011.0,88000.0,0.057]
[1767092197874,0.02864421,88010.0,88000.0,0.057]
[1767092203382,0.02864421,88010.0,87999.0,0.00017046]
[1767092203584,0.0113775,88005.0,88000.0,0.057]
[1767092203784,0.02864421,88004.0,87998.0,0.057]
[1767092203976,0.04002201,88003.0,87994.0,0.057]
[1767092204176,0.02864421,88002.0,87994.0,0.057]
[1767092204389,0.02864421,88001.0,87994.0,0.057]
[1767092204586,0.0113778,88003.0,87994.0,0.057]
[1767092204776,0.02862732,88002.0,87994.0,0.057]
[1767092204977,0.02862732,88001.0,87994.0,0.057]
[1767092205187,0.0113778,88003.0,87994.0,0.057]
[1767092205487,0.02858427,88002.0,87994.0,0.057]
[1767092205688,0.02858396,88001.0,87994.0,0.057]
[1767092205884,0.0113778,88003.0,87989.0,0.00017046]
[1767092206184,0.02858396,88002.0,87990.0,0.15368]
[1767092206380,0.02858396,88001.0,87990.0,0.15368]
[1767092206684,0.0113778,88003.0,87990.0,0.15368]
[1767092206886,0.02858089,88002.0,87990.0,0.15368]
[1767092207082,0.02858089,88001.0,87990.0,0.15368]
[1767092207286,0.0113778,88003.0,87990.0,0.15368]
[1767092207486,0.02857752,88002.0,87990.0,0.15368]
[1767092207781,0.15378757,88000.0,87983.0,0.09668]
[1767092207977,0.0113797,87988.0,87984.0,0.057]
[1767092208377,0.0113793,87991.0,87984.0,0.057]
[1767092210187,0.011379,87994.0,87984.0,0.057]
[1767092210389,0.02854649,87993.0,87984.0,0.057]
[1767092210586,0.02854649,87992.0,87984.0,0.057]
[1767092210787,0.011379,87994.0,87984.0,0.057]
[1767092210984,0.02854648,87993.0,87984.0,0.057]
[1767092211185,0.011379,87994.0,87984.0,0.057]
[1767092211379,0.0113792,87992.0,87984.0,0.057]
[1767092213386,0.0113792,87992.0,87976.0,0.0113812]
[1767092213599,0.0113792,87992.0,87977.0,0.15368]
[1767092214682,0.057,88004.0,87978.0,0.0113809]
[1767092214880,0.011379,87994.0,87978.0,0.0113809]
[1767092215077,0.02852821,87993.0,87978.0,0.0113809]
[1767092215283,0.0113792,87992.0,87977.0,0.15368]
[1767092217491,0.02851723,87991.0,87977.0,0.15368]
[1767092217686,0.0113792,87992.0,87977.0,0.15368]
[1767092218995,0.0113789,87995.0,87977.0,0.165061]
[1767092219298,0.011379,87993.0,87977.0,0.165061]
[1767092221300,0.0113789,87994.0,87954.0,0.06104911]
[1767092221497,0.01138,87986.0,87969.0,0.15368]
[1767092221690,0.01138,87986.0,87970.0,0.011382]
[1767092223299,0.01138,87986.0,87972.0,0.0113817]
[1767092224007,0.0113797,87989.0,87972.0,0.0113817]
[1767092224305,0.0113799,87987.0,87972.0,0.0113817]
[1767092230723,0.01154996,87990.0,87969.0,0.15368]
[1767092231020,0.02856716,87989.0,87969.0,0.15368]
[1767092231222,0.02856716,87988.0,87969.0,0.15368]
[1767092231417,0.01154996,87990.0,87969.0,0.15368]
[1767092231618,0.02857271,87989.0,87969.0,0.15368]
[1767092231919,0.02857271,87988.0,87969.0,0.15368]
[1767092232116,0.01154996,87990.0,87969.0,0.15368]
[1767092232419,0.02857978,87989.0,87973.0,0.0113816]
[1767092232620,0.02857978,87988.0,87973.0,0.0113816]
[1767092232810,0.00017046,87990.0,87969.0,0.15368]
[1767092233010,0.02857979,87989.0,87969.0,0.15368]
[1767092233211,0.02857979,87988.0,87969.0,0.15368]
[1767092233412,0.02857979,87987.0,87969.0,0.15368]
[1767092233710,0.00017046,87990.0,87969.0,0.15368]
[1767092234025,0.0399686,87989.0,87973.0,0.0113815]
[1767092234218,0.028589,87988.0,87973.0,0.0113815]
[1767092234418,0.028589,87987.0,87973.0,0.0113815]
[1767092234616,0.028589,87986.0,87968.0,0.09899357]
[1767092234918,0.0113811,87978.0,87969.0,0.057]
[1767092235119,0.15393005,87990.0,87969.0,0.057]
[1767092235120,0.0113807,87981.0,87969.0,0.057]
[1767092235316,0.0285933,87980.0,87969.0,0.057]
[1767092235516,0.0113807,87981.0,87969.0,0.057]
[1767092235713,0.02859325,87980.0,87969.0,0.057]
[1767092235923,0.0113807,87981.0,87969.0,0.057]
[1767092236116,0.02859325,87980.0,87969.0,0.057]
[1767092236322,0.02859325,87979.0,87969.0,0.057]
[1767092236624,0.0113807,87981.0,87969.0,0.057]
[1767092236812,0.02859588,87980.0,87969.0,0.057]
[1767092237013,0.0113805,87982.0,87969.0,0.057]
[1767092237220,0.02859589,87981.0,87969.0,0.057]
[1767092237425,0.02859589,87980.0,87969.0,0.057]
[1767092237624,0.02859589,87979.0,87969.0,0.057]
[1767092237923,0.0113805,87982.0,87969.0,0.057]
[1767092238115,0.02860031,87981.0,87969.0,0.057]
[1767092238315,0.02860031,87980.0,87969.0,0.057]
[1767092238517,0.0113801,87985.0,87969.0,0.057]
[1767092238817,0.02859903,87984.0,87969.0,0.057]
[1767092239018,0.02859903,87983.0,87969.0,0.057]
[1767092239223,0.02859903,87982.0,87969.0,0.057]
[1767092239423,0.02859903,87981.0,87969.0,0.057]
[1767092239724,0.02859903,87980.0,87969.0,0.057]
[1767092239922,0.09672,87988.0,87969.0,0.057]
[1767092240222,0.02859809,87987.0,87969.0,0.057]
[1767092240423,0.02859809,87986.0,87969.0,0.057]
[1767092240617,0.02859809,87985.0,87969.0,0.057]
[1767092240922,0.02859809,87984.0,87969.0,0.057]
[1767092241121,0.03997849,87983.0,87969.0,0.057]
[1767092241419,0.02859809,87982.0,87969.0,0.057]
[1767092241616,0.02859809,87981.0,87969.0,0.057]
[1767092241816,0.02859809,87980.0,87969.0,0.057]
[1767092242026,0.02859809,87979.0,87969.0,0.057]
[1767092242227,0.02859809,87978.0,87969.0,0.057]
[1767092242526,0.02859809,87977.0,87969.0,0.057]
[1767092242722,0.0113807,87981.0,87969.0,0.057]
[1767092243022,0.09672,87988.0,87969.0,0.057]
[1767092243225,0.0113806,87981.0,87969.0,0.057]
[1767092243623,0.0113802,87984.0,87968.0,0.00227357]
[1767092243818,0.0113805,87982.0,87968.0,0.00227357]
[1767092244619,0.0113812,87977.0,87968.0,0.00227357]
[1767092244821,0.0113808,87980.0,87968.0,0.00227357]
[1767092245118,0.09672,87988.0,87968.0,0.00227357]
[1767092245929,0.0113812,87977.0,87968.0,0.00227357]
[1767092247724,0.057,87982.0,87968.0,0.00227357]
[1767092248031,0.09672,87978.0,87963.0,0.00011842]
[1767092251034,0.00017046,87990.0,87965.0,0.0113826]
[1767092251327,6e-08,87990.0,87988.0,0.0113797]
[1767092251530,0.01320396,87993.0,87972.0,0.0113817]
[1767092251721,0.01320396,87993.0,87986.0,0.0113798]
[1767092251921,0.01320396,87993.0,87987.0,0.0113798]
[1767092252121,0.01320396,87993.0,87984.0,0.0113802]
[1767092253932,0.00017046,87997.0,87980.0,0.00017046]
[1767092254138,0.00017046,87997.0,87991.0,0.0113792]
[1767092254735,0.02825723,87996.0,87991.0,0.0113792]
[1767092254934,0.02825723,87995.0,87991.0,0.0113792]
[1767092255135,0.02825723,87994.0,87991.0,0.0113792]
[1767092255340,0.02825723,87993.0,87980.0,0.00017046]
[1767092255638,3e-08,87992.0,87989.0,0.0113795]
[1767092255840,0.00017046,87997.0,87989.0,0.0113795]
[1767092257436,0.057,88005.0,87994.0,0.0113788]
[1767092257640,0.057,88006.0,87996.0,0.0113785]
[1767092258043,0.057,88006.0,87983.0,0.0113802]
[1767092258241,0.057,88006.0,87993.0,0.011379]
[1767092258429,0.057,88006.0,87995.0,0.0113787]
[1767092258735,0.00017046,88008.0,87995.0,0.0113787]
[1767092258940,0.057,88007.0,87995.0,0.0113787]
[1767092259334,0.057,88007.0,87991.0,0.00017046]
[1767092260042,0.00017046,88008.0,87991.0,0.00017046]
[1767092260545,9e-08,87998.0,87997.0,0.0113785]
[1767092265247,0.0113757,88019.0,87999.0,0.0113781]
[1767092265439,0.0113759,88017.0,87999.0,0.0113781]
[1767092265833,0.00693878,88026.0,87995.0,0.09672]
[1767092266038,0.0113755,88021.0,87995.0,0.09672]
[1767092266343,0.00017046,88017.0,88000.0,0.0113781]
[1767092266938,0.00017046,88017.0,88002.0,0.0113778]
[1767092267446,0.02780766,88016.0,88002.0,0.0113778]
[1767092267649,0.0113753,88022.0,88004.0,0.0113775]
[1767092267843,0.0278075,88021.0,88006.0,0.0113773]
[1767092268043,0.0278075,88020.0,88006.0,0.0113773]
[1767092268261,0.0278075,88019.0,87995.0,0.09672]
[1767092268461,0.0278075,88018.0,88000.0,0.15364587]
[1767092268655,0.0278075,88017.0,88004.0,0.0113775]
[1767092268854,0.0278075,88016.0,88004.0,0.0113775]
[1767092269055,0.00017046,88018.0,88004.0,0.0113775]
[1767092269254,0.02780172,88017.0,88004.0,0.0113775]
[1767092269456,0.00017046,88018.0,88004.0,0.0113775]
[1767092269756,0.02779661,88017.0,88004.0,0.0113775]
[1767092269956,0.00017046,88018.0,88004.0,0.0113775]
[1767092270157,0.0277963,88017.0,88004.0,0.0113775]
[1767092270358,0.00017046,88018.0,88004.0,0.0113775]
[1767092270559,0.02779207,88017.0,88004.0,0.0113775]
[1767092270761,0.00017046,88018.0,88004.0,0.0113775]
[1767092270960,0.02779209,88017.0,88004.0,0.0113775]
[1767092271160,0.00017046,88018.0,88004.0,0.0113775]
[1767092274164,0.02778806,88017.0,88004.0,0.0113775]
[1767092274365,0.00017046,88018.0,88004.0,0.0113775]
[1767092274564,0.027788,88017.0,88001.0,0.0113779]
[1767092274764,0.01154636,88018.0,88001.0,0.0113779]
[1767092275065,0.027788,88017.0,88001.0,0.0113779]
[1767092275261,0.01154636,88018.0,88001.0,0.0113779]
[1767092275461,0.02779139,88017.0,88001.0,0.0113779]
[1767092275760,0.01154636,88018.0,88001.0,0.0113779]
[1767092275962,0.02779136,88017.0,88001.0,0.0113779]
[1767092276161,0.01154636,88018.0,88002.0,0.057]
[1767092276362,0.02779625,88017.0,88002.0,0.057]
[1767092276564,0.0113761,88016.0,88002.0,0.057]
[1767092277872,0.02780278,88015.0,88002.0,0.057]
[1767092278071,0.02780278,88014.0,88002.0,0.057]
[1767092278272,0.0113761,88016.0,88002.0,0.057]
[1767092278473,0.02781106,88015.0,88002.0,0.057]
[1767092278663,0.02781106,88014.0,88002.0,0.057]
[1767092278864,0.0113761,88016.0,88002.0,0.057]
[1767092279064,0.02781115,88015.0,88002.0,0.057]
[1767092279274,0.02781115,88014.0,88002.0,0.057]
[1767092279471,0.15368,88025.0,88004.0,0.15364587]
[1767092279671,0.15368,88025.0,88010.0,0.15364587]
[1767092279866,0.057,88025.0,88010.0,0.15364587]
[1767092280271,0.0113753,88023.0,88010.0,0.15364587]
[1767092280761,0.0113753,88023.0,88008.0,0.00017046]
[1767092281577,0.00017046,88025.0,88010.0,0.15364587]
[1767092281772,0.0113725,88044.0,88008.0,0.00017046]
[1767092281773,0.09668,88039.0,88013.0,0.15364587]
[1767092281963,0.09668,88039.0,88016.0,0.011376]
[1767092282165,0.09668,88039.0,88010.0,0.15364587]
[1767092282367,0.15364587,88030.0,88011.0,0.15368]
[1767092282566,0.0113751,88024.0,88011.0,0.15368]
[1767092282777,0.0113754,88022.0,88008.0,0.00017046]
[1767092282979,0.16502147,88020.0,88008.0,0.00017046]
[1767092283168,0.0113756,88020.0,88008.0,0.00017046]
[1767092283670,0.0113756,88020.0,88009.0,0.01136]
[1767092286078,0.0113753,88023.0,88009.0,0.01136]
[1767092291982,0.0113752,88023.0,88009.0,0.01136]
[1767092293175,0.00011232,88026.0,88009.0,0.01136]
[1767092293375,0.02747791,88025.0,88009.0,0.01136]
[1767092293576,0.02747791,88024.0,88009.0,0.01136]
[1767092293776,0.00011232,88026.0,88009.0,0.01136]
[1767092293979,0.0113752,88023.0,88009.0,0.01136]
[1767092295878,0.0113755,88021.0,88009.0,0.01136]
[1767092297783,0.00011232,88026.0,88009.0,0.01136]
[1767092297784,0.15364587,88020.0,88009.0,0.01136]
[1767092298083,0.011376,88017.0,88009.0,0.01136]
[1767092298289,0.0113762,88015.0,88009.0,0.01136]
[1767092298488,0.02748479,88014.0,88005.0,0.09668]
[1767092299289,0.0113764,88013.0,88005.0,0.09668]
[1767092299484,0.02748479,88012.0,88005.0,0.09668]
[1767092301394,0.0113767,88011.0,88000.0,0.00017046]
[1767092301584,0.18113066,88010.0,87987.0,0.1080597]
[1767092301900,0.0113776,88005.0,87987.0,0.1080597]
[1767092302091,0.08448479,88004.0,87987.0,0.1080597]
[1767092302292,0.02748479,88003.0,87987.0,0.1080597]
[1767092305587,0.03886259,88003.0,87987.0,0.1080597]
[1767092305793,0.02748479,88002.0,87987.0,0.1080597]
[1767092306094,0.0113778,88003.0,87987.0,0.1080597]
[1767092306292,0.02747981,88002.0,87987.0,0.1080597]
[1767092306489,0.0113778,88003.0,87987.0,0.1080597]
[1767092306689,0.15364587,88000.0,87987.0,0.1080597]
[1767092306892,0.0113778,88003.0,87987.0,0.1080597]
[1767092307099,0.02747635,88002.0,87987.0,0.1080597]
[1767092307303,0.0113778,88003.0,87987.0,0.1080597]
[1767092309403,0.05717046,88004.0,87989.0,0.0113795]
[1767092311007,0.05717046,88004.0,87991.0,0.0113793]
[1767092313914,0.00017046,88004.0,87991.0,0.0113793]
[1767092314210,0.057,88003.0,87991.0,0.0113793]
[1767092315110,0.057,88002.0,87991.0,0.0113793]
[1767092315806,0.057,88001.0,87991.0,0.0113793]
[1767092317913,0.057,88001.0,87993.0,0.011379]
[1767092319517,0.057,88001.0,87995.0,0.0113788]
[1767092320921,0.057,88001.0,87992.0,0.011379]
[1767092325925,0.057,88000.0,87992.0,0.011379]
[1767092326320,0.057,88000.0,87986.0,0.00017046]
[1767092326321,0.0113783,87999.0,87986.0,0.00017046]
[1767092326525,0.0683782,88000.0,87986.0,0.00017046]
[1767092326919,0.0683782,88000.0,87986.0,0.01155036]
[1767092330425,0.057,87999.0,87988.0,0.0113796]
[1767092331431,0.057,88000.0,87993.0,0.011379]
[1767092331630,0.057,88000.0,87990.0,0.0113793]
[1767092332044,0.057,88000.0,87992.0,0.0113791]
[1767092335351,0.057,88000.0,87989.0,0.0113795]
[1767092337048,0.057,88000.0,87986.0,0.00017046]
[1767092338254,0.057,88000.0,87990.0,0.0113793]
[1767092339558,0.057,88000.0,87992.0,0.0113791]
[1767092339959,0.057,88000.0,87994.0,0.0113788]
[1767092340964,0.057,88000.0,87986.0,0.01155036]
[1767092341159,0.057,88000.0,87987.0,0.0113798]
[1767092341462,0.057,88001.0,87986.0,0.01155036]
[1767092341854,0.00017046,88004.0,87995.0,0.0113787]
[1767092342061,6e-08,88004.0,88002.0,0.0113778]
[1767092342255,0.057,88011.0,88004.0,0.0113775]
[1767092342450,0.011375,88025.0,88008.0,0.011377]
[1767092342656,0.15368,88024.0,88008.0,0.011377]
[1767092342857,0.15368,88024.0,88002.0,0.0113779]
[1767092343358,0.0113761,88016.0,88004.0,0.00017046]
[1767092343556,0.0113767,88012.0,88004.0,0.00017046]
[1767092343965,0.057,88011.0,87991.0,0.057]
[1767092344158,0.057,88011.0,87990.0,0.09668]
[1767092344159,0.0113774,88006.0,87990.0,0.09668]
[1767092345957,0.011377,88009.0,87990.0,0.09668]
[1767092346866,0.057,88011.0,87990.0,0.09668]
[1767092348270,0.0113773,88007.0,87990.0,0.09668]
[1767092352859,0.0113775,88005.0,87990.0,0.09668]
[1767092353975,0.02727652,88004.0,87990.0,0.09668]
[1767092354176,0.02727652,88003.0,87990.0,0.09668]
[1767092354372,0.02727652,88002.0,87990.0,0.09668]
[1767092354574,0.02727652,88001.0,87990.0,0.09668]
[1767092354776,0.00017046,88004.0,87990.0,0.09668]
[1767092354967,0.02727655,88003.0,87990.0,0.09668]
[1767092355267,0.02727655,88002.0,87990.0,0.09668]
[1767092355466,0.02727655,88001.0,87990.0,0.09668]
[1767092355667,0.00017046,88004.0,87990.0,0.09668]
[1767092355874,0.02727658,88003.0,87990.0,0.09668]
[1767092356174,0.02727658,88002.0,87990.0,0.09668]
[1767092356375,0.0113782,88000.0,87989.0,0.00017046]
[1767092356669,0.02727658,87999.0,87989.0,0.00017046]
[1767092356875,0.0113782,88000.0,87989.0,0.00017046]
[1767092357075,0.02726955,87999.0,87989.0,0.00017046]
[1767092357270,0.0113782,88000.0,87989.0,0.00017046]
[1767092357470,0.02726969,87999.0,87989.0,0.00017046]
[1767092357670,0.0113782,88000.0,87989.0,0.00017046]
[1767092357863,0.02726954,87999.0,87989.0,0.00017046]
[1767092358065,0.0113782,88000.0,87989.0,0.00017046]
[1767092375294,0.057,88002.0,87989.0,0.00017046]
[1767092375497,0.02729083,88001.0,87989.0,0.00017046]
[1767092375691,0.057,88002.0,87989.0,0.00017046]
[1767092375894,0.02729083,88001.0,87989.0,0.00017046]
[1767092376195,0.057,88002.0,87989.0,0.00017046]
[1767092376391,0.02729083,88001.0,87989.0,0.00017046]
[1767092376688,0.057,88002.0,87989.0,0.00017046]
[1767092376894,0.0272916,88001.0,87989.0,0.00017046]
[1767092377195,0.057,88002.0,87989.0,0.00017046]
[1767092377495,0.02729159,88001.0,87989.0,0.00017046]
[1767092377690,0.057,88002.0,87989.0,0.00017046]
[1767092377891,0.02729192,88001.0,87989.0,0.00017046]
[1767092378093,0.057,88002.0,87989.0,0.00017046]
[1767092378293,0.02729193,88001.0,87989.0,0.00017046]
[1767092378493,0.057,88002.0,87989.0,0.00017046]
[1767092378693,0.02729232,88001.0,87989.0,0.00017046]
[1767092378893,0.057,88002.0,87989.0,0.00017046]
[1767092379192,0.02729237,88001.0,87989.0,0.00017046]
[1767092379392,0.057,88002.0,87989.0,0.00017046]
[1767092379593,0.02729284,88001.0,87989.0,0.00017046]
[1767092379794,0.057,88002.0,87989.0,0.00017046]
[1767092379988,0.02729341,88001.0,87989.0,0.00017046]
[1767092380187,0.057,88002.0,87989.0,0.00017046]
[1767092380387,0.02729342,88001.0,87989.0,0.00017046]
[1767092380583,0.011378,88001.0,87989.0,0.00017046]
[1767092380789,0.02734842,88000.0,87989.0,0.00017046]
[1767092380994,0.011378,88001.0,87985.0,0.01138]
[1767092381304,0.02734843,88000.0,87987.0,0.0113798]
[1767092381504,0.011378,88001.0,87987.0,0.0113798]
[1767092381803,0.0273507,88000.0,87987.0,0.0113798]
[1767092382003,0.011378,88001.0,87987.0,0.0113798]
[1767092382204,0.02735056,88000.0,87987.0,0.0113798]
[1767092382400,0.0683779,88002.0,87985.0,0.00017046]
[1767092382697,0.02735129,88001.0,87985.0,0.00017046]
[1767092382903,0.02735129,88000.0,87985.0,0.00017046]
[1767092383104,0.0683779,88002.0,87985.0,0.00017046]
[1767092383305,0.02735157,88001.0,87988.0,0.0113797]
[1767092383503,0.02735157,88000.0,87988.0,0.0113797]
[1767092383701,0.0683779,88002.0,87988.0,0.0113797]
[1767092383900,0.02735249,88001.0,87988.0,0.0113797]
[1767092384098,0.02735249,88000.0,87988.0,0.0113797]
[1767092384298,0.0683779,88002.0,87988.0,0.0113797]
[1767092384599,0.02735378,88001.0,87988.0,0.0113797]
[1767092384792,0.02735378,88000.0,87988.0,0.0113797]
[1767092384995,0.0683779,88002.0,87988.0,0.0113797]
[1767092385192,0.02735383,88001.0,87988.0,0.0113797]
[1767092385497,0.02735383,88000.0,87988.0,0.0113797]
[1767092385697,0.02735383,87999.0,87988.0,0.0113797]
[1767092385904,0.0683779,88002.0,87988.0,0.0113797]
[1767092386106,0.02736362,88001.0,87988.0,0.0113797]
[1767092386309,0.02736362,88000.0,87988.0,0.0113797]
[1767092386509,0.02736362,87999.0,87988.0,0.0113797]
[1767092386807,0.0683779,88002.0,87988.0,0.0113797]
[1767092387006,0.02736656,88001.0,87988.0,0.0113797]
[1767092387210,0.02736656,88000.0,87988.0,0.0113797]
[1767092387506,0.02736656,87999.0,87988.0,0.0113797]
[1767092387708,0.0683779,88002.0,87988.0,0.0113797]
[1767092387908,0.02736679,88001.0,87988.0,0.0113797]
[1767092388103,0.02736679,88000.0,87988.0,0.0113797]
[1767092388310,0.02736679,87999.0,87988.0,0.0113797]
[1767092388611,0.02736679,87998.0,87988.0,0.0113797]
[1767092388808,0.02736679,87997.0,87988.0,0.0113797]
[1767092389017,0.0683779,88002.0,87988.0,0.0113797]
[1767092389310,0.0273667,88001.0,87988.0,0.0113797]
[1767092389510,0.0273667,88000.0,87988.0,0.0113797]
[1767092389702,0.0273667,87999.0,87988.0,0.0113797]
[1767092389900,0.0273667,87998.0,87988.0,0.0113797]
[1767092390106,0.0273667,87997.0,87988.0,0.0113797]
[1767092390308,0.0683779,88002.0,87988.0,0.0113797]
[1767092390513,0.02736878,88001.0,87988.0,0.0113797]
[1767092390707,0.02736878,88000.0,87988.0,0.0113797]
[1767092390908,0.02736878,87999.0,87988.0,0.0113797]
[1767092391112,0.02736878,87998.0,87988.0,0.0113797]
[1767092391314,0.02736878,87997.0,87988.0,0.0113797]
[1767092391615,0.0683779,88002.0,87988.0,0.0113797]
[1767092391815,0.02736965,88001.0,87988.0,0.0113797]
[1767092392112,0.02736965,88000.0,87988.0,0.0113797]
[1767092392313,0.02736965,87999.0,87988.0,0.0113797]
[1767092392516,0.02736965,87998.0,87988.0,0.0113797]
[1767092392812,0.02736965,87997.0,87988.0,0.0113797]
[1767092393012,0.15373734,88000.0,87988.0,0.0113797]
[1767092393204,0.02736935,87999.0,87988.0,0.0113797]
[1767092393404,0.02736935,87998.0,87988.0,0.0113797]
[1767092393604,0.02736935,87997.0,87988.0,0.0113797]
[1767092393806,0.15373734,88000.0,87988.0,0.0113797]
[1767092394014,0.02736917,87999.0,87988.0,0.0113797]
[1767092394218,0.02736917,87998.0,87988.0,0.0113797]
[1767092394406,0.02736917,87997.0,87988.0,0.0113797]
[1767092394608,0.16511554,88000.0,87985.0,0.01155046]
[1767092394809,0.02736907,87999.0,87987.0,0.0113798]
[1767092395011,0.02736907,87998.0,87987.0,0.0113798]
[1767092395307,0.02736907,87997.0,87987.0,0.0113798]
[1767092395507,0.16511554,88000.0,87987.0,0.0113798]
[1767092395814,0.02736888,87999.0,87990.0,0.0113794]
[1767092396115,0.02736888,87998.0,87990.0,0.0113794]
[1767092396316,0.02736888,87997.0,87990.0,0.0113794]
[1767092396516,0.02736888,87997.0,87987.0,0.0113797]
[1767092397520,0.02736888,87997.0,87989.0,0.0113795]
[1767092398022,0.057,87998.0,87989.0,0.0113795]
[1767092399021,0.15373734,88000.0,87989.0,0.0113795]
[1767092399324,0.08436936,87999.0,87989.0,0.0113795]
[1767092399621,0.057,87999.0,87989.0,0.0113795]
[1767092400323,0.057,87999.0,87985.0,0.00017046]
[1767092401419,0.00017046,88004.0,87994.0,0.0113788]
[1767092401725,0.00017046,88004.0,87985.0,0.00017046]
[1767092401726,0.057,88008.0,87993.0,0.0113789]
[1767092401922,0.057,88008.0,87995.0,0.0113787]
[1767092402612,0.057,88008.0,87990.0,0.15373734]
[1767092402811,0.0113773,88007.0,87985.0,0.00017046]
[1767092403019,0.0113773,88007.0,87992.0,0.0113791]
[1767092403216,0.0113775,88005.0,87992.0,0.0113791]
[1767092403819,0.057,88008.0,87989.0,0.0113795]
[1767092403820,0.0113778,88003.0,87989.0,0.0113795]
[1767092404023,0.15373734,88000.0,87985.0,0.00017046]
[1767092404217,0.0113783,87999.0,87978.0,0.057]
[1767092404420,0.0113783,87999.0,87979.0,0.057]
[1767092405222,0.15373734,87990.0,87980.0,0.01155116]
[1767092406328,0.0683788,87995.0,87979.0,0.057]
[1767092406520,0.15373734,87990.0,87979.0,0.057]
[1767092407023,0.057,87995.0,87979.0,0.0683808]
[1767092407218,0.15373734,87990.0,87979.0,0.0683808]
[1767092407427,0.0683788,87995.0,87979.0,0.0683808]
[1767092408732,0.15373734,87990.0,87979.0,0.0683808]
[1767092410929,0.0683788,87995.0,87979.0,0.0683808]
[1767092411130,0.057,87995.0,87981.0,0.0113805]
[1767092412131,0.057,87995.0,87979.0,0.057]
[1767092412434,0.0113789,87994.0,87979.0,0.057]
[1767092413439,0.15373734,87990.0,87979.0,0.057]
[1767092413936,0.15373734,87990.0,87980.0,0.0113807]
[1767092414234,0.057,87995.0,87980.0,0.0113807]
[1767092416235,0.057,87995.0,87982.0,0.0113804]
[1767092417041,0.0683788,87995.0,87979.0,0.0683808]
[1767092420338,0.0113791,87993.0,87979.0,0.0683808]
[1767092420538,0.15373734,87990.0,87979.0,0.057]
[1767092422740,0.15373734,87990.0,87976.0,0.10823166]
[1767092422934,0.0113801,87985.0,87976.0,0.09685046]
[1767092423241,0.0113801,87985.0,87974.0,0.04725024]
[1767092423442,0.15373734,87986.0,87969.0,0.09672]
[1767092423642,0.16511814,87980.0,87969.0,0.09672]
[1767092423837,0.15373734,87980.0,87969.0,0.09672]
[1767092424540,0.0683804,87983.0,87969.0,0.09672]
[1767092424741,0.15373734,87980.0,87969.0,0.09672]
[1767092426334,0.15373734,87980.0,87968.0,0.00227357]
[1767092426534,0.0113814,87975.0,87968.0,3.57e-06]
[1767092426733,0.0683814,87975.0,87966.0,0.00017046]
[1767092427830,0.0683814,87975.0,87963.0,0.00011842]
[1767092428040,0.15373734,87973.0,87959.0,0.0113833]
[1767092428244,0.15373734,87970.0,87956.0,0.0683838]
[1767092429142,0.0001209,87969.0,87956.0,0.0683838]
[1767092429339,0.0001209,87969.0,87959.0,0.0113834]
[1767092429548,0.0001209,87969.0,87961.0,0.0113831]
[1767092430048,0.0001209,87969.0,87958.0,0.0113835]
[1767092431152,0.0001209,87969.0,87956.0,0.057]
[1767092431153,0.0001209,87969.0,87960.0,0.0113832]
[1767092431646,0.057,87978.0,87959.0,0.15373734]